{"text_format":"1","workbook":"xlsx","n_sheets":9,"sheets":["DATA-SHEWART","SHEWART","DATA-CUSUM","Cusum M","Cusum R","Cusum C","CUSUM Help","SHEWART Help","ExampleData"],"not_rendered":{"charts":8,"images":6,"macros":1,"external_links":2,"defined_names":38,"comments":0,"pivot_tables":0},"unopened":[{"sheet":"SHEWART","index":1,"reason":"not_a_worksheet"},{"sheet":"Cusum M","index":3,"reason":"not_a_worksheet"},{"sheet":"Cusum R","index":4,"reason":"not_a_worksheet"},{"sheet":"Cusum C","index":5,"reason":"not_a_worksheet"}],"bounds":{"document_bytes":16777216,"sheet_cells":100000,"rows_first":2000,"rows_last":500,"rows_between":2000,"halvings":0,"cell_chars":16384,"cell_head_chars":4096},"cells_cut":0,"cells_raw":0,"read":"whole","date_system":"1900"}

{"sheet":"DATA-SHEWART","index":0,"n_rows":44,"n_cols":17,"rows_kept":44,"cut":false,"hidden":true,"merged":[[0,10,0,16],[15,7,15,8],[1,10,1,14],[2,10,2,14],[3,10,3,14],[15,1,16,1],[15,2,16,2],[0,0,0,5],[1,0,1,4],[2,0,2,4],[15,3,15,4],[3,0,3,4],[4,0,4,4],[5,0,5,4],[12,2,12,4]]}
["اطلاعات ورودي",null,null,null,null,null,null,null,null,null,"اطلاعات خروجي"]
["مقاومت فشاري هدف",null,null,null,null,42,null,null,null,null,"(c*σ) فاصله خطوط كنترل از انحراف معيار (UCL و LCL) ",null,null,null,null,60,24]
["انحراف معيار (σ)",null,null,null,null,6,false,0,32,null,"(w*σ) فااصله خطوط اخطار از انحراف معيار (UWL و LWL)",null,null,null,null,54,30]
["ضريب فاصله خطوط كنترل از انحراف معيار (UCL و LCL)",null,null,null,null,3]
["ضريب فاصله خطوط اخطار از انحراف معيار (UWL و LWL)",null,null,null,null,2]
[" رشد مقاومت فشاري از 7 به 28 روز (%)",null,null,null,null,0]
[]
[]
[]
[]
[]
[]
[null,null,"اطلاعات ورودي"]
[]
[]
[null,"specimens ID","Casting Date","Results of Specimens (Early Results)",null,"Mean Compressive strength","(Estimated) 28 days strength"]
[null,null,null,"N/mm2","N/mm2","N/mm2","N/mm2"]
[null,1,"1999-01-07",54,54,54,54]
[null,2,"1999-01-08",38,38,38,38]
[null,3,"1999-01-09",42,42,42,42]
[null,4,"1999-01-10",38.5,38.5,38.5,38.5]
[null,5,"1999-01-11",43.5,43.5,43.5,43.5]
[null,6,"1999-01-12",41,41,41,41]
[null,7,"1999-01-13",43,43,43,43]
[null,8,"1999-01-14",34,34,34,34]
[null,9,"1999-01-15",53,53,53,53]
[null,10,"1999-01-16",33.5,33.5,33.5,33.5]
[null,11,"1999-01-17",34,34,34,34]
[null,12,"1999-01-18",43.5,43.5,43.5,43.5]
[null,13,"1999-01-19",42,42,42,42]
[null,14,"1999-01-20",33.5,33.5,33.5,33.5]
[null,15,"1999-01-21",38,38,38,38]
[null,16,"1999-01-22",43,43,43,43]
[null,17,"1999-01-23",39.5,39.5,39.5,39.5]
[null,18,"1999-01-24",44,44,44,44]
[null,19,"1999-01-25",40.5,40.5,40.5,40.5]
[null,20,"1999-01-26",42,42,42,42]
[null,21,"1999-01-27",37,37,37,37]
[null,22,"1999-01-28",33.5,33.5,33.5,33.5]
[null,23,"1999-01-29",42,42,42,42]
[null,24,"1999-01-30",32.5,32.5,32.5,32.5]
[null,25,"1999-01-31",35.5,35.5,35.5,35.5]
[null,26,"1999-02-01",32.5,32.5,32.5,32.5]
[null,27,"1999-02-02",33.5,33.5,33.5,33.5]

{"sheet":"DATA-CUSUM","index":2,"n_rows":44,"n_cols":26,"rows_kept":44,"cut":false,"hidden":false,"merged":[[9,15,9,17],[0,9,0,14],[8,0,8,4],[1,23,1,25],[2,23,2,25],[1,0,1,4],[2,0,2,4],[3,0,3,4],[4,0,4,4],[5,0,5,4],[6,0,6,4],[7,0,7,4],[17,3,17,4],[16,1,16,5],[14,2,14,4],[0,0,0,5],[1,9,1,13],[2,9,2,13],[3,9,3,13],[16,12,16,14],[17,2,18,2],[17,1,18,1],[16,6,16,8],[16,9,16,11]]}
["اطلاعات ورودي",null,null,null,null,null,null,null,null,"اطلاعات خروجي"]
["مقاومت فشاري هدف (چنانچه مقاومت هدف بر اساس آزمونه مكعبي است بايد نتايج ذكر شده در جدول زير هم نتايج آزمونه مكعبي باشد)",null,null,null,null,42,null,null,null,"(h*σ) فاصله تصميم گيري ماسك در نمودارهاي CUSUM C, M  ",null,null,null,null,45.740202651493185,null,null,null,null,null,null,null,null,"مختصات ماسك V"]
["انحراف معيار (σ)",null,null,null,null,5.7175253314366481,true,null,null,"(h'*σ)  فاصله تصميم گيري ماسك در نمودار CUSUM R  ",null,null,null,null,28.58762665718324,null,null,null,null,null,null,null,null,"در اين قسمت تغييري داده نشود"]
["رشد مقاومت فشاري از 7 به 28 روز (%)",null,null,null,null,0,null,null,null,"(k*σ) شيب ماسك V ",null,null,null,null,0.57175253314366481,null,null,null,null,null,null,null,null,25,-3.2597973485068152,-94.740202651493178]
["ماسک V برای داده ردیف ... رسم شود",null,null,null,null,25,true,null,null,null,null,null,null,null,null,null,null,null,null,null,null,null,null,5,8.175253314366481,-106.17525482177734]
["(h) ضريب فاصله تصميم گيري ماسك در نمودارهاي CUSUM C,M  ",null,null,null,null,8,null,null,null,null,null,null,null,null,null,null,null,null,null,null,null,null,null,25,37.087626657183236,-20.08762665718324]
["('h) ضريب فاصله تصميم گيري ماسك در نمودار CUSUM R  ",null,null,null,null,5,null,null,null,null,null,null,null,null,null,null,null,null,null,null,null,null,null,5,48.52267732005653,-31.522676467895508]
["(k) ضريب شيب ماسك V ",null,null,null,null,0.1,null,null,null,null,null,null,null,null,null,null,null,null,null,null,null,null,null,25,45.740202651493185,-45.740202651493185]
["(L) طول بازوي ماسك V",null,null,null,null,20,null,null,null,null,null,null,null,null,null,null,null,null,null,null,null,null,null,5,57.175253314366479,-57.175254821777344]
[]
[]
[]
[]
[null,null,null,null,null,null,null,null,null,null,null,null,"اطلاعات ورودي"]
[null,null,"اطلاعات ورودي",null,null,null,null,null,null,null,null,null,"(اختياري)"]
[]
[null,"Casting Specifications",null,null,null,null,"CUSUM   MEAN (M)",null,null,"CUSUM   RANGE (R)",null,null,"CUSUM   CORRELATION (C)"]
[null,"specimens ID","Casting Date","Results of Specimens (Early Results)",null,"Mean Compressive strength","(Estimated 28 days) strength","minus target mean Strength","Cusum of mean strength","Range of pairs of values","minus target mean Range","Cusum of mean Range","Actual 28 daye Strength","Correllation difference","Cusum of mean Corrollation"]
[null,null,null,"N/mm2","N/mm2","N/mm2","N/mm2","N/mm2","N/mm2","N/mm2","N/mm2","N/mm2","N/mm2","N/mm2","N/mm2"]
[null,1,"1999-01-06",54,54,54,54,12,12,"-","-",0,53,-1,-1]
[null,2,"1999-01-07",38,38,38,38,-4,8,16,10,10,35,-3,-4]
[null,3,"1999-01-08",42,42,42,42,0,8,4,-2,8,41,-1,-5]
[null,4,"1999-01-09",38.5,38.5,38.5,38.5,-3.5,4.5,3.5,-2.5,5.5,38.5,0,-5]
[null,5,"1999-01-10",43.5,43.5,43.5,43.5,1.5,6,5,-1,4.5,43.5,0,-5]
[null,6,"1999-01-11",41,41,41,41,-1,5,2.5,-3.5,1,39,-2,-7]
[null,7,"1999-01-12",43,43,43,43,1,6,2,-4,-3,47.5,4.5,-2.5]
[null,8,"1999-01-13",34,34,34,34,-8,-2,9,3,0,37.5,3.5,1]
[null,9,"1999-01-14",53,53,53,53,11,9,19,13,13,53.5,0.5,1.5]
[null,10,"1999-01-15",33.5,33.5,33.5,33.5,-8.5,0.5,19.5,13.5,26.5,32.5,-1,0.5]
[null,11,"1999-01-16",34,34,34,34,-8,-7.5,0.5,-5.5,21,30,-4,-3.5]
[null,12,"1999-01-17",43.5,43.5,43.5,43.5,1.5,-6,9.5,3.5,24.5,43.5,0,-3.5]
[null,13,"1999-01-18",42,42,42,42,0,-6,1.5,-4.5,20,40.5,-1.5,-5]
[null,14,"1999-01-19",33.5,33.5,33.5,33.5,-8.5,-14.5,8.5,2.5,22.5,34,0.5,-4.5]
[null,15,"1999-01-20",38,38,38,38,-4,-18.5,4.5,-1.5,21,35.5,-2.5,-7]
[null,16,"1999-01-21",43,43,43,43,1,-17.5,5,-1,20,41.5,-1.5,-8.5]
[null,17,"1999-01-22",39.5,39.5,39.5,39.5,-2.5,-20,3.5,-2.5,17.5,38.5,-1,-9.5]
[null,18,"1999-01-23",44,44,44,44,2,-18,4.5,-1.5,16,46.5,2.5,-7]
[null,19,"1999-01-24",40.5,40.5,40.5,40.5,-1.5,-19.5,3.5,-2.5,13.5]
[null,20,"1999-01-25",42,42,42,42,0,-19.5,1.5,-4.5,9]
[null,21,"1999-01-26",37,37,37,37,-5,-24.5,5,-1,8]
[null,22,"1999-01-27",33.5,33.5,33.5,33.5,-8.5,-33,3.5,-2.5,5.5]
[null,23,"1999-01-28",42,42,42,42,0,-33,8.5,2.5,8]
[null,24,"1999-01-29",32.5,32.5,32.5,32.5,-9.5,-42.5,9.5,3.5,11.5]
[null,25,"1999-01-30",35.5,35.5,35.5,35.5,-6.5,-49,3,-3,8.5]

{"sheet":"CUSUM Help","index":6,"n_rows":22,"n_cols":1,"rows_kept":22,"cut":false,"hidden":false,"merged":[]}
["راهنماي استفاده از روش جمع تجمعي CUSUM"]
["روش‌هاي کنترل CUSUM (کوته نوشته cumulative sum) در ابتدا برای کنترل کیفیت فرایندهای تولید مداوم در دهه 1950 توسعه یافتند. پس از آن‌، استفاده گسترده ای در صنعت بتن پیدا کرده‌اند. در نمودارهای CUSUM، خط مرکزی یک مقدار میانگین ثابت را نشان نمی دهد بلکه یک خط صفر برای ارزیابی روندها در نتایج است. در تولید بتن سه CUSUM استفاده می شود:"]
["·         CUSUM M برای کنترل مقاومت میانگین؛"]
["·         CUSUM R، برای کنترل دامنه تغييرات؛"]
["·         CUSUM C برای کنترل همبستگی نتايج تخمين زده شده و نتايج بدست آمده."]
["Cusum روشی است که جمع جبری اختلاف نتایج آزمایش نمونه کنترلی را با میانگینی که در ابتدا تعیین شده است، بررسی می‌نماید و به خطای سیستماتیک حساس می‌باشد. در حالت عادی نتایج کنترل‌ها در اطراف میانگین (بالاتر و پایین‌تر) قرائت می‌شوند اما اگر نتایج سیر نزولی یا صعودی پیدا کنند، جمع جبری اختلافات نتایج با میانگین، افزایش یافته و احتمال بروز خطای سیستماتیک مطرح می‌گردد."]
["روش CUSUM، با جزئیات بیشتر در BS 5703 و نشريه شماره 6 Digest of Society Concrete و ISO / TR 7871 شرح داده شده است. اگر فرآیند در حال کنترل است، نقاط در نمودار CUSUM به صورت تصادفی توزیع می شوند (تفاضل مثبت و منفی یکدیگر را خنثی می کنند)، به منظور دستیابی جمع تجمعی نزدیک به صفر، اما اگر فرآیند تحت کنترل نباشد، به سرعت نتیجه به انحراف نقاط CUSUM به سمت UCL یا LCL خود را نشان می دهد."]
["BS 5700 مزایای روش CUSUM را به شرح زير ارايه می دهد: "]
["الف) برای نمونه هایی با یک مشخصات ثبات، تصویری واضح از هر تغییر را ارایه می دهد؛"]
["ب) داده ها به طور موثر ترمورد استفاده و تحلیل قرار گرفته و لذا باعث صرفه جویی در هزینه می شود؛"]
["ج) محل و میزان تغییرات مشخص را نشان می دهد. "]
["نمودار CUSUM در تشخیص تغییرات کوچک در میانگین فرآیند نسبت به نمودار Shewhart حساس تر است، در حالیکه نمودارهای Shewhart در تشخیص تغییرات بزرگ دارای مزیت هستند. هنگامی که CUSUM به UCL یا LCL می رسد، می‌توان از نمودار استفاده کرد تا مشخص شود در چه نقطه‌ای فرآیند از کنترل خارج می‌شود و چه میزان اقدام اصلاحی لازم است."]
["در گذشته، نمودارهای کنترل CUSUM به صورت دستی ترسیم شده و برای تعیین اینکه آیا روند در فرآيند مهم بوده یا خیر، یک ماسک شفاف به شکل یک V بريده ( cut off) در کنار آن روی نمودار قرار داده می شده، مرکز این ماسک روی نقطه آخر قرار داده می شد نه رو خط مرکزی. فاصله و زاويه هر بازو بر اساس انحراف استاندارد مشخص می شود و بطور معمول مقدار ضريب فاصله آن (h',h) بين 3 تا 8 برابر انحراف معيار و ضريب زاويه (k) آن هم بين 0/05 تا 0/5 برابر انحراف معيار انتخاب مي‌شود. اگرچه محدودیتی در طول بازو (L) وجود ندارد ولي برخي مراجه آن را 10 قرار داده اند. بازوهای های V-mask محدودیت‌های بالایی و پایین تر را نشان می دهند. اگر نمودار بازوي بالا یا پایین ماسك V را قطع كند، تغییر قابل توجهی رخ داده است. "]
["راهنماي استفاده از نرم افزار"]
["1- به هيچ عنوان سطر يا ستوني يا اطلاعات سلولي را حذف، اضافه يا تغيير  ندهيد."]
["2- تمام اطلاعات بايد عدد باشد و از ورود حرف اجتناب شود."]
["3- در اين نرم افزار امكان ورود 1000 سطر اطلاعات وجود دارد."]
["4- اطلاعات ورودي شامل: مقاومت فشاري هدف، انحراف معيار (بنا به مورد)، رشد مقاومت فشاري، ضرايب رسم ماسك V، مقاومت فشاري آزمونه‌هاي بتن و تاريخ نمونه‌برداري و همچنين در صورت تمايل مقاومت فشاري 28 روزه مي‌باشد."]
["5- در صورتي كه اطلاعات مربوط به انحراف معيار وجود ندارد،‌ امكان محاسبه انحراف معيار توسط نرم‌افزار (در صورت انتخاب آن) و مطابق روابط آئين‌نامه بتن ايران وجود دارد."]
["6- امكان رسم ماسك V براي هر نوبت نمونه‌برداري (در صورت انتخاب) به تناوب وجود دارد."]
["7- مقادير h، h'،  kو L بايد بزرگتر از صفر بوده و به بازه معمول براي آن‌ها ترتيب، (3-8)، (3-6)، (0/05-0/5) و بزرگتر از صفر مي‌باشد. "]
["8- جهت كنترل و اتخاذ تدابير به هنگام، توصيه مي‌شود نتايج مقاومت فشاري 7 روز وارد شده و با استفاده از درصد رشد مقاومت 7 به 28، ‌نتايج 28 روز تخمين زده شود. در صورتي كه نتايج بدست آمده در 28 روز در ستون نتايج اوليه (D18‌ و E18)  وارد مي‌شود، رشد مقاومت فشاري، صفر انتخاب شود. "]

{"sheet":"SHEWART Help","index":7,"n_rows":28,"n_cols":1,"rows_kept":28,"cut":false,"hidden":true,"merged":[]}
["راهنماي استفاده از روش جمع تجمعي SHEWART"]
["موثر‌ترین راه برای کنترل کیفی محصولات، روش‌های آماری می‌باشد که تصویری از وضعیت کل تولید را ارایه می‌دهد. در واقع تغییر‌پذیری به عنوان یک پدیده دائمی و جزء لاینفک محصولات تولیدی، دلیل اصلی استفاده از روش‌های آماری برای بررسی و کنترل این تغییرات است. در واحد‌های صنعتی، تا زمانی که از مواد، ماشین‌آلات، افراد و روش‌ها برای تولید استفاده شود مشکل تغییر کیفیت نیز وجود خواهد داشت و تا زمانی که این مشکل وجود داشته باشد، روش‌های آماری کنترل کیفیت نیز لازم خواهند بود."]
["گرچه روش‌های چند متغیره برای داده‌های چند متغیره مناسبتر هستند ولی در عمل در صنعت معمول نیستند. از آنجا که کنترل کیفیت چند متغیره از محاسبات پیچیده‌تری برخوردار است اکثر کارشناسان کیفیت از روش‌های ساده‌تر و در عین حال با کارایی کمتر استفاده می‌کنند، این در حالیست که با رشد روزافزون استفاده از کامپیوتر در بسیاری از صنايع این محاسبات به راحتی امکان پذیر است."]
["از بزرگترین مزایای حالت چند متغیره نسبت به تک متغیره وارد کردن ماتریس همبستگی (واریانس-کوواریانس) در محاسبات است که از این طریق تاثیر متغیرها بر هم بررسی شده و بدین ترتیب دید جامع‌تر و بهتری به داده ها خواهیم داشت. مهمترین کار در این زمینه توسط Hotelling در سال ۱۹۴۷ انجام شده است. وی روش كنترل كيفي چند متغييره را توسعه داد و از آن در نمودارهای کنترل كيفي استفاده نمود. در سال ۱۹۶۰ با پیشرفت تکنولوژی کامپیوتر، کنترل آماری فرآیند چند متغیره بسیار مورد توجه قرار گرفت و بحث کنترل همزمان چندین مشخصه کیفی در سطح وسیعی مطرح شد. نمودارها در کشف یک وضعیت خارج از کنترل بسیار خوب عمل می کنند، ولي نقطه ضعف عمده این نمودار آن است که علی‌رغم اینکه می‌تواند به درستی یک وضعیت خارج از کنترل را نشان دهد، در تعیین مشخصه‌های كیفی منحرف شده، کمبود دارند."]
["با توجه به اینکه امروزه تعداد تولید‌کنندگان کالا یا ارائه‌دهندگان خدمات افزایش یافته، مشتریان به دنبال بهترین کالا یا خدماتی هستند که بیشترین کیفیت را داشته باشد. بنابراین رقابتی بین این بنگاه‌های اقتصادی به منظور حفظ کیفیت و کسب رضایت مشتریان وجود دارد. ابزار علمی برای کنترل و حفظ کیفیت کالا یا خدمات، «کنترل کیفیت آماری (Statistical Quality Control)» است که گاهی به اختصار SPC‌ نیز نامیده می‌شود. در این روش آماری، از نمودارها و شاخص‌هایی به منظور شناسایی عوامل خروج کالا یا خدمات از کیفیت مورد نظر، بهره می‌برند. در  نتیجه «فرآیند کنترل کیفیت(Quality Control Process)» یک فرایند دائمی و تکراری است که در طول مراحل تولید و حتی بعد از آن انجام می‌شود."]
["کنترل کیفیت (Quality Control)"]
["در دانش کنترل کیفیت بر طبق یک فرآیند تعریف شده، در بازه‌های زمانی مشخص تعداد مشخصی از محصولات را انتخاب کرده (که به آن نمونه‌برداري می‌گویند) و کیفیت آن‌ها را با ابزارهای مختلف اندازه‌گیری می‌کنند و سپس با استفاده از یکسری تکنیک‌های آماری تعیین می‌کنند که آیا محصول/خدمت تولید شده با کیفیت هست یا خیر و اگر نیست مشکل از کجاست و چه باید کرد. نکته کلیدی در فلسفه کنترل کیفیت همین لزوم نمونه‌گیری است. به عبارت دیگر اگر ما بتوانیم و توجیه زمانی و هزینه‌ای داشته باشیم که تمام محصولات/خدمات تولید شده را کنترل کنیم، اساسا شاید نیازی به این علم نباشد، بنابراین زمانی این دانش وارد عمل می‌شود که مثلا توجیه نداشته باشد کل 100 هزار قطعه تولیدی روزانه یک کارخانه را دانه به دانه کنترل کرد. پس چاره‌اي نيست كه تعدادی از آن‌ها را کنترل کرده و اگر با کیفیت بودند نتیجه بگیریم که کل قطعات با کیفیت بوده و آماده ورود به بازار هستند."]
["به مجموعه فنون و اقدام‌های عملیاتی به منظور تحقق بخشیدن به الزامات کیفی، «کنترل کیفیت» (QC) گفته می‌شود. کنترل کیفیت برای تشخیص مسائل مربوط به محصول یا خدمت، طراحی شده و از طریق سیستم‌ها، روش‌ها، ابزارها و فنون بازرسی توسعه یافته است. ساز و كار کنترل کیفیت مبتنی بر بازرسی و بازخورد (Feedback) می‌باشد. در کنترل کیفیت ويژگي‌هایی از محصول که بعنوان معیار پذیرش در نظر گرفته شده، مورد بررسی قرار گرفته و گزارش آن ارائه می‌گردد. در کنترل کیفیت فقط به خروجی فرآیند توجه می‌شود و به ریشه نواقص و عدم انطباق ها توجهی نمی‌شود. بطور خلاصه، کنترل کیفیت عبارت است از ارزیابی سیستماتیک کالا و خدمت به منظور بررسی میزان انطباق آن‌ها با معیارهای تعیین شده."]
[]
[]
[]
[]
[]
[]
[]
[]
[]
[]
[]
[]
[]
["راهنماي استفاده از نرم افزار"]
["1- به هيچ عنوان سطر يا ستوني يا اطلاعات سلولي را حذف، اضافه يا تغيير  ندهيد."]
["2- تمام اطلاعات بايد عدد باشد و از ورود حرف اجتناب شود."]
["3- در اين نرم افزار امكان ورود 1000 سطر اطلاعات وجود دارد."]
["4- اطلاعات ورودي شامل: مقاومت فشاري هدف، انحراف معيار (بنا به مورد)، رشد مقاومت فشاري، ضرايب فاصله خطول كنترل و اخطار، مقاومت فشاري آزمونه‌هاي بتن و تاريخ نمونه‌برداري مي‌باشد."]
["5- در صورتي كه اطلاعات مربوط به انحراف معيار وجود ندارد،‌ امكان محاسبه انحراف معيار توسط نرم‌افزار (در صورت انتخاب آن) و مطابق روابط آئين‌نامه بتن ايران وجود دارد."]
["6- جهت كنترل و اتخاذ تدابير به هنگام، توصيه مي‌شود نتايج مقاومت فشاري 7 روز وارد شده و با استفاده از درصد رشد مقاومت 7 به 28، ‌نتايج 28 روز تخمين زده شود. در صورتي كه نتايج بدست آمده در 28 روز در ستون نتايج اوليه (D18‌ و E18)  وارد مي‌شود، رشد مقاومت فشاري، صفر انتخاب شود. "]

{"sheet":"ExampleData","index":8,"n_rows":56,"n_cols":15,"rows_kept":56,"cut":false,"hidden":false,"merged":[[0,0,0,1],[0,2,0,3],[0,4,0,5]]}
["Wheeler",null,"Errors",null,"Weights"]
[50,"h=2.65",2,"h=6",9.0999999999999998E-2,"h=4"]
[51,"k=1",2.04,"k=.5",9.6000000000000002E-2,"k=.5"]
[50.5,"target=50",2.02,"target= 2",0.108,"target=0.1",null,43,54,{"$f":"I4/H4","v":1.2558139534883721}]
[49,"w = .2",2,"w = .2",0.105,"w = .2",null,28.5,38,{"$f":"I5/H5","v":1.3333333333333333}]
[50,null,1.97,null,0.11700000000000001,null,null,32,42,1.3125]
[43,null,1.98,null,7.9000000000000001E-2,null,null,29,38.5,1.3275862068965518]
[42,null,2.0299999999999998,null,8.6999999999999994E-2,null,null,33.5,43.5,1.2985074626865671]
[45,null,1.99,null,9.7000000000000003E-2,null,null,31,41,1.3225806451612903]
[47,null,1.94,null,0.109,null,null,33,43,1.303030303030303]
[49,null,1.96,null,9.9000000000000005E-2,null,null,25,34,1.36]
[46,null,1.91,null,0.105,null,null,42,53,1.2619047619047619]
[50,null,2,null,9.4E-2,null,null,24.5,33.5,1.3673469387755102]
[52,null,2.08,null,0.11899999999999999,null,null,25,34,1.36]
[52.5,null,2.1,null,0.10100000000000001,null,null,33.5,43.5,1.2985074626865671]
[51,null,2.04,null,9.2999999999999999E-2,null,null,32,42,1.3125]
[52,null,2.0299999999999998,null,0.111,null,null,24.5,33.5,1.3673469387755102]
[50,null,2,null,0.115,null,null,28.5,38,1.3333333333333333]
[49,null,1.96,null,0.107,null,null,33,43,1.303030303030303]
[54,null,2.0499999999999998,null,0.108,null,null,30,39.5,1.3166666666666667]
[51,null,2.04,null,0.106,null,null,34,44,1.2941176470588236]
[52,null,2.08,null,0.109,null,null,31,40.5,1.3064516129032258]
[46,null,1.89,null,0.105,null,null,32,42,1.3125]
[42,null,1.92,null,9.1999999999999998E-2,null,null,27.5,37,1.3454545454545455]
[43,null,1.9,null,9.8000000000000004E-2,null,null,24.5,33.5,1.3673469387755102,null,null,null,43.5,43.5]
[45,null,1.91,null,0.106,null,null,32,42,1.3125,null,null,null,42,42]
[46,null,1.93,null,0.104,null,null,24,32.5,1.3541666666666667,null,null,null,33.5,33.5]
[42,null,1.9,null,8.7999999999999995E-2,null,null,26.5,35.5,1.3396226415094339,null,null,null,38,38]
[44,null,1.89,null,7.5999999999999998E-2,null,null,24,32.5,1.3541666666666667,null,null,null,43,43]
[43,null,1.92,null,8.5000000000000006E-2,null,null,24.5,33.5,1.3673469387755102,null,null,null,39.5,39.5]
[46,null,1.96,null,9.8000000000000004E-2,null,null,28.5,49,1.7192982456140351,null,null,null,44,44]
[42,null,2,null,9.7000000000000003E-2,null,null,37.5,48,1.28,null,null,null,40.5,40.5]
[43,null,2.04,null,8.6999999999999994E-2,null,null,30,39.5,1.3166666666666667,null,null,null,42,42]
[42,null,2.08,null,7.6999999999999999E-2,null,null,26,35,1.3461538461538463,null,null,null,37,37]
[45,null,2.0099999999999998,null,9.2999999999999999E-2,null,null,39.5,50,1.2658227848101267,null,null,null,33.5,33.5]
[49,null,2.04,null,8.4000000000000005E-2,null,null,39,49.5,1.2692307692307692,null,null,null,42,42]
[50,null,1.96,null,8.7999999999999995E-2,null,null,38,48.5,1.2763157894736843,null,null,null,32.5,32.5]
[51,null,2,null,0.108,null,null,32,42,1.3125,null,null,null,35.5,35.5]
[52,null,1.98,null,9.8000000000000004E-2,null,null,27.5,36.5,1.3272727272727274,null,null,null,32.5,32.5]
[54,null,2.04,null,9.0999999999999998E-2,null,null,32,42,1.3125,null,null,null,33.5,33.5]
[51,null,2,null,9.5000000000000001E-2,null,null,32,42,1.3125,null,null,null,49,49]
[49,null,2.08,null,null,null,null,33,43,1.303030303030303,null,null,null,48,48]
[50,null,2,null,null,null,null,33.5,43.5,1.2985074626865671,null,null,null,39.5,39.5]
[49.5,null,1.92,null,null,null,null,37.5,48,1.28,null,null,null,35,35]
[51,null,1.98,null,null,null,null,31.5,41,1.3015873015873016,null,null,null,50,50]
[50,null,1.96,null,null,null,null,null,null,null,null,null,null,49.5,49.5]
[52,null,null,null,null,null,null,null,null,null,null,null,null,48.5,48.5]
[50,null,null,null,null,null,null,null,null,null,null,null,null,42,42]
[48,null,null,null,null,null,null,null,null,null,null,null,null,36.5,36.5]
[49.5,null,null,null,null,null,null,null,null,null,null,null,null,35,34]
[49,null,null,null,null,null,null,null,null,null,null,null,null,36,32]
[null,null,null,null,null,null,null,null,null,null,null,null,null,31,30]
[null,null,null,null,null,null,null,null,null,null,null,null,null,32,33]
[null,null,null,null,null,null,null,null,null,null,null,null,null,37,35]
[null,null,null,null,null,null,null,null,null,null,null,null,null,34,36]
[null,null,null,null,null,null,null,null,null,null,null,null,null,40,38]